lending/lending_fUSD_20251107
["ID","MTS","AMOUNT","RATE_DAILY","PERIOD"]
[393342245,1762493444264,-825.89,0.00026676,2]
[393342246,1762493444274,-247.79,0.00026717,2]
[393342247,1762493444283,-371.91137564,0.00026778,2]
[393342248,1762493444293,-287.66596389,0.00026778,2]
[393342249,1762493444304,-157.45979606,0.00026845,30]
[393342250,1762493444314,-820.0,0.00026976,2]
[393342251,1762493444323,-1596.0,0.00026976,2]
[393342252,1762493444333,-814.749,0.00026976,2]
[393342253,1762493444352,-1273.0,0.00026976,2]
[393342254,1762493444361,-1188.0,0.00026976,2]
[393342255,1762493444371,-905.0,0.00026976,2]
[393342256,1762493444380,-250.0,0.00027,2]
[393342257,1762493444389,-1021.08103789,0.00027,2]
[393342258,1762493444399,-530.0,0.00027,2]
[393342259,1762493444409,-500.0,0.00027,2]
[393342260,1762493444418,-1475.08845669,0.00027165,2]
[393342261,1762493444428,-1807.24,0.000275,2]
[393342262,1762493444438,-372.06,0.000275,7]
[393342263,1762493444447,-1609.63,0.0002794,2]
[393342264,1762493444457,-3494.0,0.00027974,2]
[393342265,1762493444466,-157.45979604,0.00027987,30]
[393342266,1762493444475,-171.1,0.00028,7]
[393342267,1762493444484,-157.51553146,0.0002834,2]
[393342268,1762493444493,-2000.0,0.000285,2]
[393342269,1762493444502,-502.0,0.0002874,2]
[393342270,1762493444512,-1122.25582246,0.00029,2]
[393342271,1762493444522,-300.82617854,0.00029,2]
[393342272,1762493444531,-550.0,0.00029,2]
[393342273,1762493444541,-12649.0,0.00029229,2]
[393342274,1762493444550,-500.0,0.00029447,2]
[393342275,1762493444559,-1475.08845669,0.00029463,2]
[393342276,1762493444568,-377.24,0.00029535,2]
[393342277,1762493444578,-152.0,0.0002967,3]
[393342278,1762493444589,-1153.0,0.00029676,2]
[393342279,1762493444599,-2142.0,0.00029676,2]
[393342280,1762493444608,-607.0,0.00029676,2]
[393342281,1762493444617,-820.0,0.00029976,2]
[393342282,1762493444626,-1596.0,0.00029976,2]
[393342283,1762493444635,-812.0,0.00029976,2]
[393342284,1762493444644,-1273.0,0.00029976,2]
[393342285,1762493444653,-1188.0,0.00029976,2]
[393342286,1762493444662,-905.0,0.00029976,2]
[393342287,1762493444671,-151.0,0.0003,7]
[393342288,1762493444680,-96296.45285987,0.0003,2]
[393342289,1762493444688,-5646.23629699,0.0003,2]
[393342290,1762493444698,-4212.2243655,0.0003,2]
[393342291,1762493444708,-372.06,0.0003,7]
[393342292,1762493444720,-963.66,0.00030009,2]
[393342293,1762493444733,-192.32,0.00030047,2]
[393342294,1762493444742,-1807.24,0.000301,2]
[393342295,1762493444752,-308.00801652,0.0003013,2]
[393342296,1762493444761,-1058.91028585,0.0003013,2]
[393342297,1762493444770,-13666.68894269,0.0003013,2]
[393342298,1762493444779,-999.0,0.00030136,2]
[393342299,1762493444787,-175.48706705,0.00030137,120]
[393342300,1762493444796,-162.35810273,0.000302,2]
[393342301,1762493444806,-166.66,0.00030285,2]
[393342302,1762493444815,-2576.22793422,0.0003084,2]
[393342303,1762493444826,-208.49035451,0.0003084,14]
[393342304,1762493444835,-9250.31660392,0.0003095,2]
[393342305,1762493444845,-600.0,0.00031,2]
[393342306,1762493444854,-152.0,0.00031075,4]
[393342307,1762493444863,-166.66,0.00031285,2]
[393342308,1762493444873,-1475.08845669,0.00031761,2]
[393342309,1762493444882,-157.51553146,0.0003178,2]
[393342310,1762493444892,-151.133,0.00031783,30]
[393342311,1762493444901,-3036.531,0.00031783,30]
[393342312,1762493444911,-171.1,0.000318,30]
[393342313,1762493444920,-151.0,0.00032,7]
[393342314,1762493444930,-1011.33361857,0.00032,7]
[393342315,1762493444939,-21311.58,0.00032057,2]
[393342316,1762493444949,-17709.0,0.00032152,3]
[393342317,1762493444958,-2000.0,0.000322,2]
[393342318,1762493444968,-372.06,0.000322,7]
[393342319,1762493444979,-500.0,0.00032254,2]
[393342320,1762493444988,-166.66,0.00032285,2]
[393342321,1762493444998,-881.40911335,0.000323,2]
[393342322,1762493445008,-1807.24,0.000323,2]
[393342323,1762493445017,-152.0,0.0003248,5]
[393342324,1762493445027,-524.472,0.00032676,2]
[393342325,1762493445039,-2142.0,0.00032676,2]
[393342326,1762493445049,-607.0,0.00032676,2]
[393342327,1762493445058,-1011.42185199,0.000327,7]
[393342328,1762493445068,-4762.39629796,0.000328,2]
[393342329,1762493445078,-211.0,0.0003286,30]
[393342330,1762493445088,-500.0,0.00032875,120]
[393342331,1762493445098,-500.0,0.00032876,120]
[393342332,1762493445109,-578.81216164,0.00032876,120]
[393342333,1762493445122,-983.58,0.00032876,2]
[393342334,1762493445132,-983.58,0.00032876,2]
[393342335,1762493445142,-983.58,0.00032876,2]
[393342336,1762493445152,-983.58,0.00032876,2]
[393342337,1762493445162,-983.58,0.00032876,2]
[393342338,1762493445172,-983.58,0.00032876,2]
[393342339,1762493445182,-983.58,0.00032876,2]
[393342340,1762493445191,-983.58,0.00032876,2]
[393342341,1762493445201,-983.58,0.00032876,2]
[393342342,1762493445211,-983.58,0.00032876,2]
[393342343,1762493445220,-983.58,0.00032876,2]
[393342344,1762493445230,-983.58,0.00032876,2]
[393342345,1762493445240,-983.58,0.00032876,2]
[393342346,1762493445249,-983.58,0.00032876,2]
[393342347,1762493445259,-983.58,0.00032876,2]
[393342348,1762493445268,-983.58,0.00032876,2]
[393342349,1762493445278,-983.58,0.00032876,2]
[393342350,1762493445288,-983.58,0.00032876,2]
[393342351,1762493445300,-983.58,0.00032876,2]
[393342352,1762493445310,-983.58,0.00032876,2]
[393342353,1762493445321,-983.58,0.00032876,2]
[393342354,1762493445332,-983.58,0.00032876,2]
[393342355,1762493445342,-983.58,0.00032876,2]
[393342356,1762493445353,-983.63249526,0.00032876,2]
[393342357,1762493445363,-999.0,0.00032876,120]
[393342358,1762493445373,-435.05869777,0.00032876,2]
[393342359,1762493445383,-500.0,0.00032876,2]
[393342360,1762493445392,-413.35623366,0.00032876,2]
[393342361,1762493445401,-341.89392442,0.00032876,2]
[393342362,1762493445410,-500.0,0.00032876,2]
[393342363,1762493445419,-500.0,0.00032876,2]
[393342364,1762493445429,-500.0,0.00032876,2]
[393342365,1762493445438,-417.69607268,0.00032876,2]
[393342366,1762493445448,-500.0,0.00032876,2]
[393342367,1762493445457,-175.377284,0.00032876,2]
[393342368,1762493445466,-460.53062729,0.00032876,2]
[393342369,1762493445476,-500.0,0.00032876,2]
[393342370,1762493445490,-500.0,0.00032876,2]
[393342371,1762493445500,-279.58618959,0.00032876,2]
[393342372,1762493445509,-500.0,0.00032876,2]
[393342373,1762493445520,-150.0,0.00032876,2]
[393342374,1762493445529,-150.0,0.00032876,2]
[393342375,1762493445539,-150.0,0.00032876,2]
[393342376,1762493445550,-150.0,0.00032876,2]
[393342377,1762493445560,-150.0,0.00032876,2]
[393342378,1762493445570,-150.0,0.00032876,2]
[393342379,1762493445580,-224.33046837,0.00032876,2]
[393342380,1762493445590,-500.0,0.00032876,2]
[393342381,1762493445599,-500.0,0.00032876,2]
[393342382,1762493445610,-500.0,0.00032876,2]
[393342383,1762493445620,-500.0,0.00032876,2]
[393342384,1762493445630,-500.0,0.00032876,2]
[393342385,1762493445640,-500.0,0.00032876,2]
[393342386,1762493445650,-500.0,0.00032876,2]
[393342387,1762493445660,-500.0,0.00032876,2]
[393342388,1762493445669,-500.0,0.00032876,2]
[393342389,1762493445679,-500.0,0.00032876,2]
[393342390,1762493445689,-500.0,0.00032876,2]
[393342391,1762493445699,-500.0,0.00032876,2]
[393342392,1762493445709,-500.0,0.00032876,2]
[393342393,1762493445719,-500.0,0.00032876,2]
[393342394,1762493445729,-500.0,0.00032876,2]
[393342395,1762493445739,-500.0,0.00032876,2]
[393342396,1762493445750,-341.33455573,0.00032876,2]
[393342397,1762493445760,-500.0,0.00032876,2]
[393342398,1762493445770,-500.0,0.00032876,2]
[393342399,1762493445780,-500.0,0.00032876,2]
[393342400,1762493445790,-500.0,0.00032876,2]
[393342401,1762493445800,-500.0,0.00032876,2]
[393342402,1762493445809,-500.0,0.00032876,2]
[393342403,1762493445819,-500.0,0.00032876,2]
[393342404,1762493445827,-500.0,0.00032876,2]
[393342405,1762493445837,-500.0,0.00032876,2]
[393342406,1762493445846,-500.0,0.00032876,2]
[393342407,1762493445856,-500.0,0.00032876,2]
[393342408,1762493445866,-493.18359754,0.00032876,2]
[393342409,1762493445879,-1000.0,0.00032877,21]
[393342410,1762493445889,-1000.0,0.00032877,21]
[393342411,1762493445899,-1000.0,0.00032877,21]
[393342412,1762493445910,-1000.0,0.00032877,21]
[393342413,1762493445920,-599.0,0.00032877,21]
[393342414,1762493445930,-500.0,0.00032877,7]
[393342415,1762493445940,-500.0,0.00032877,7]
[393342416,1762493445949,-500.0,0.00032877,7]
[393342417,1762493445960,-500.0,0.00032877,7]
[393342418,1762493445969,-500.0,0.00032877,7]
[393342419,1762493445981,-500.0,0.00032877,7]
[393342420,1762493445991,-500.0,0.00032877,7]
[393342421,1762493446001,-500.0,0.00032877,7]
[393342422,1762493446011,-500.0,0.00032877,7]
[393342423,1762493446021,-500.0,0.00032877,7]
[393342424,1762493446031,-500.0,0.00032877,7]
[393342425,1762493446046,-500.0,0.00032877,7]
[393342426,1762493446056,-500.0,0.00032877,7]
[393342427,1762493446066,-500.0,0.00032877,7]
[393342428,1762493446076,-500.0,0.00032877,7]
[393342429,1762493446087,-500.0,0.00032877,7]
[393342430,1762493446096,-500.0,0.00032877,7]
[393342431,1762493446105,-500.0,0.00032877,7]
[393342432,1762493446116,-500.0,0.00032877,7]
[393342433,1762493446126,-500.0,0.00032877,7]
[393342434,1762493446135,-500.0,0.00032877,7]
[393342435,1762493446145,-500.0,0.00032877,7]
[393342436,1762493446155,-500.0,0.00032877,7]
[393342437,1762493446165,-500.0,0.00032877,7]
[393342438,1762493446176,-561.91499006,0.00032877,7]
[393342439,1762493446186,-500.0,0.00032877,7]
[393342440,1762493446196,-500.0,0.00032877,7]
[393342441,1762493446205,-500.0,0.00032877,7]
[393342442,1762493446215,-500.0,0.00032877,7]
[393342443,1762493446227,-500.0,0.00032877,7]
[393342444,1762493446237,-500.0,0.00032877,7]
[393342445,1762493446247,-500.0,0.00032877,7]
[393342446,1762493446256,-500.0,0.00032877,7]
[393342447,1762493446266,-500.0,0.00032877,7]
[393342448,1762493446279,-500.0,0.00032877,7]
[393342449,1762493446289,-500.0,0.00032877,7]
[393342450,1762493446298,-500.0,0.00032877,7]
[393342451,1762493446308,-500.0,0.00032877,7]
[393342452,1762493446318,-500.0,0.00032877,7]
[393342453,1762493446327,-500.0,0.00032877,7]
[393342454,1762493446337,-500.0,0.00032877,7]
[393342455,1762493446347,-500.0,0.00032877,7]
[393342456,1762493446357,-500.0,0.00032877,7]
[393342457,1762493446367,-500.0,0.00032877,7]
[393342458,1762493446378,-500.0,0.00032877,7]
[393342459,1762493446388,-500.0,0.00032877,7]
[393342460,1762493446399,-500.0,0.00032877,7]
[393342461,1762493446409,-500.0,0.00032877,7]
[393342462,1762493446420,-500.0,0.00032877,7]
[393342463,1762493446429,-500.0,0.00032877,7]
[393342464,1762493446439,-557.23491055,0.00032877,7]
[393342465,1762493446448,-500.0,0.00032877,7]
[393342466,1762493446458,-500.0,0.00032877,7]
[393342467,1762493446468,-500.0,0.00032877,7]
[393342468,1762493446480,-500.0,0.00032877,7]
[393342469,1762493446491,-500.0,0.00032877,7]
[393342470,1762493446500,-500.0,0.00032877,7]
[393342471,1762493446511,-500.0,0.00032877,7]
[393342472,1762493446522,-500.0,0.00032877,7]
[393342473,1762493446531,-500.0,0.00032877,7]
[393342474,1762493446541,-250.0,0.00032877,7]
[393342475,1762493446553,-250.0,0.00032877,7]
[393342476,1762493446563,-167.83404792,0.0003288,30]
[393342477,1762493446572,-167.83,0.0003288,30]
[393342478,1762493446583,-176.48,0.0003288,30]
[393342479,1762493446593,-269.18039782,0.0003288,30]
[393342480,1762493446603,-269.18039782,0.0003288,30]
[393342481,1762493446613,-269.18039782,0.0003288,30]
[393342482,1762493446623,-269.18039782,0.0003288,30]
[393342483,1762493446633,-269.18039782,0.0003288,30]
[393342484,1762493446645,-269.18039782,0.0003288,30]
[393342485,1762493446654,-269.18039782,0.0003288,30]
[393342486,1762493446666,-269.18039782,0.0003288,30]
[393342487,1762493446677,-269.18039782,0.0003288,30]
[393342488,1762493446687,-269.18039782,0.0003288,30]
[393342489,1762493446696,-269.18039782,0.0003288,30]
[393342490,1762493446706,-269.18039782,0.0003288,30]
[393342491,1762493446716,-269.18039782,0.0003288,30]
[393342492,1762493446726,-269.18039782,0.0003288,30]
[393342493,1762493446737,-269.18039782,0.0003288,30]
[393342494,1762493446747,-269.18039782,0.0003288,30]
[393342495,1762493446757,-269.18039782,0.0003288,30]
[393342496,1762493446767,-269.18039782,0.0003288,30]
[393342497,1762493446777,-269.18039782,0.0003288,30]
[393342498,1762493446787,-269.18,0.0003288,30]
[393342499,1762493446797,-628.08759491,0.0003288,30]
[393342500,1762493446807,-628.08759491,0.0003288,30]
[393342501,1762493446817,-628.08759491,0.0003288,30]
[393342502,1762493446827,-628.08759491,0.0003288,30]
[393342503,1762493446837,-628.08759491,0.0003288,30]
[393342504,1762493446847,-628.08759491,0.0003288,30]
[393342505,1762493446857,-628.08759491,0.0003288,30]
[393342506,1762493446868,-628.08759491,0.0003288,30]
[393342507,1762493446878,-628.08759491,0.0003288,30]
[393342508,1762493446887,-628.08759491,0.0003288,30]
[393342509,1762493446897,-628.08759491,0.0003288,30]
[393342510,1762493446907,-628.08759491,0.0003288,30]
[393342511,1762493446917,-628.08759491,0.0003288,30]
[393342512,1762493446927,-628.08759491,0.0003288,30]
[393342513,1762493446937,-628.08759491,0.0003288,30]
[393342514,1762493446947,-628.08759491,0.0003288,30]
[393342515,1762493446958,-628.08759491,0.0003288,30]
[393342516,1762493446968,-628.08759491,0.0003288,30]
[393342517,1762493446978,-628.08759491,0.0003288,30]
[393342518,1762493446988,-628.08,0.0003288,30]
[393342519,1762493446998,-820.0,0.00032976,2]
[393342520,1762493447009,-1596.0,0.00032976,2]
[393342521,1762493447019,-812.0,0.00032976,2]
[393342522,1762493447029,-1273.0,0.00032976,2]
[393342523,1762493447043,-1188.0,0.00032976,2]
[393342524,1762493447052,-905.0,0.00032976,2]
[393342525,1762493447063,-1536.74855903,0.00033,2]
[393342526,1762493447073,-151.43090155,0.00033,2]
[393342527,1762493447085,-2000.0,0.00033083,120]
[393342528,1762493447096,-199.0,0.0003315,7]
[393342529,1762493447106,-825.89,0.00033165,2]
[393342531,1762493447117,-875.43111292,0.00033185,2]
[393342532,1762493447128,-501.0,0.00033244,2]
[393342533,1762493447138,-166.66,0.00033284,2]
[393342534,1762493447148,-1000.0,0.00033333,7]
[393342535,1762493447158,-501.0,0.00033346,2]
[393342536,1762493447170,-963.66,0.00033434,2]
[393342537,1762493447186,-1194.81598635,0.000335,2]
[393342538,1762493447196,-180623.0,0.000335,2]
[393342539,1762493447206,-2501.0,0.00033524,7]
[393342540,1762493447217,-218.99390657,0.00033589,2]
[393342541,1762493447229,-155.17832541,0.000336,14]
[393342544,1762493447395,-372.06,0.000336,14]
[393342545,1762493447423,-875.43111292,0.00033694,2]
[393342546,1762493447433,-1005.0,0.000337,7]
[393342547,1762493447443,-501.0,0.00033729,2]
[393342548,1762493447452,-218.99390657,0.00033742,2]
[393342549,1762493447462,-875.43111292,0.0003377,2]
[393342550,1762493447471,-500.0,0.0003379,7]
[393342551,1762493447480,-500.0,0.00033793,7]
[393342552,1762493447489,-158.0,0.000338,31]
[393342553,1762493447499,-159.0,0.000338,31]
[393342554,1762493447508,-1807.24,0.000338,2]
[393342555,1762493447517,-247.79,0.00033823,2]
[393342556,1762493447526,-500.0,0.00033835,7]
[393342557,1762493447536,-152.0,0.00033885,6]
[393342558,1762493447545,-501.0,0.00033943,2]
[393342559,1762493447555,-2000.0,0.00033957,120]
[393342560,1762493447564,-500.0,0.00033969,7]
[393342561,1762493447574,-500.0,0.00033972,7]
[393342562,1762493447583,-875.43111292,0.00033994,2]
[393342563,1762493447592,-976.96,0.00034,2]
[393342564,1762493447602,-1999.99,0.00034,2]
[393342565,1762493447612,-2000.0,0.00034,2]
[393342566,1762493447622,-2000.0,0.00034,2]
[393342567,1762493447632,-2000.0,0.00034,2]
[393342568,1762493447641,-2000.0,0.00034,2]
[393342569,1762493447651,-2000.0,0.00034,2]
[393342570,1762493447661,-2000.0,0.00034,2]
[393342571,1762493447670,-2000.0,0.00034,2]
[393342572,1762493447679,-1877.68,0.00034,2]
[393342573,1762493447688,-218.99390657,0.00034041,2]
[393342574,1762493447697,-500.0,0.00034042,7]
[393342575,1762493447706,-500.0,0.00034051,7]
[393342576,1762493447716,-1475.08845669,0.00034059,2]
[393342577,1762493447725,-2501.0,0.00034207,2]
[393342578,1762493447735,-167.66,0.00034212,2]
[393342579,1762493447745,-500.0,0.00034241,7]
[393342580,1762493447754,-2501.0,0.00034279,2]
[393342581,1762493447763,-166.66,0.00034284,2]
[393342582,1762493447772,-2501.0,0.00034298,2]
[393342583,1762493447782,-218.99390657,0.00034347,2]
[393342584,1762493447791,-2507.0,0.0003436,2]
[393342585,1762493447800,-500.0,0.00034363,7]
[393342586,1762493447809,-167.66,0.00034382,2]
[393342587,1762493447818,-5515.0,0.000344,3]
[393342588,1762493447828,-875.43111292,0.00034407,2]
[393342589,1762493447837,-1706.36816701,0.0003449,2]
[393342590,1762493447846,-199.0,0.0003452,8]
[393342591,1762493447855,-2501.0,0.00034528,2]
[393342592,1762493447865,-500.0,0.00034539,7]
[393342593,1762493447874,-167.66,0.00034552,2]
[393342594,1762493447885,-501.0,0.00034555,2]
[393342595,1762493447894,-510.17653817,0.0003457,7]
[393342596,1762493447903,-500.0,0.00034571,7]
[393342597,1762493447913,-500.0,0.00034594,7]
[393342598,1762493447923,-500.0,0.0003463,7]
[393342599,1762493447932,-218.99390657,0.00034648,2]
[393342600,1762493447942,-1005.0,0.000347,7]
[393342601,1762493447951,-500.0,0.00034705,7]
[393342602,1762493447960,-2501.0,0.00034722,2]
[393342603,1762493447970,-875.43111292,0.00034729,2]
[393342604,1762493447979,-501.0,0.00034759,2]
[393342605,1762493447989,-192.32,0.00034765,2]
[393342606,1762493448003,-215.47,0.00034788,2]
[393342607,1762493448013,-372.06,0.000348,14]
[393342608,1762493448023,-2000.0,0.00034832,120]
[393342609,1762493448032,-500.0,0.00034843,7]
[393342610,1762493448045,-501.0,0.00034851,2]
[393342611,1762493448054,-211.0,0.0003488,30]
[393342612,1762493448063,-500.0,0.00034884,120]
[393342613,1762493448073,-500.0,0.00034884,120]
[393342614,1762493448083,-500.0,0.00034884,120]
[393342615,1762493448092,-500.0,0.00034884,120]
[393342616,1762493448101,-500.0,0.00034884,120]
[393342617,1762493448112,-500.0,0.00034884,120]
[393342618,1762493448121,-500.0,0.00034884,120]
[393342619,1762493448130,-500.0,0.00034884,120]
[393342620,1762493448140,-500.0,0.00034884,120]
[393342621,1762493448149,-500.0,0.00034884,120]
[393342622,1762493448159,-500.0,0.00034884,120]
[393342623,1762493448169,-500.0,0.00034884,120]
[393342624,1762493448179,-500.0,0.00034884,120]
[393342625,1762493448189,-1421.25133821,0.00034891,30]
[393342626,1762493448198,-1807.24,0.000349,2]
[393342627,1762493448207,-218.99390657,0.00034939,2]
[393342628,1762493448216,-698.68,0.00034986,2]
[393342629,1762493448225,-698.68,0.00034986,2]
[393342630,1762493448238,-698.68,0.00034986,2]
[393342631,1762493448247,-698.68,0.00034986,2]
[393342632,1762493448256,-698.68,0.00034986,2]
[393342633,1762493448266,-698.68,0.00034986,2]
[393342634,1762493448275,-698.68,0.00034986,2]
[393342635,1762493448285,-698.68,0.00034986,2]
[393342636,1762493448294,-698.68,0.00034986,2]
[393342637,1762493448303,-698.68,0.00034986,2]
[393342638,1762493448312,-1405.99,0.00034986,2]
[393342639,1762493448321,-151.0,0.00034987,14]
[393342640,1762493448330,-151.0,0.00034987,14]
[393342641,1762493448339,-1255955.09991908,0.0003499,30]
[393342642,1762493448495,-314.06540004,0.0003499,30]
[393342643,1762493448644,1026.04862013,0.000149,2]
[393342644,1762493448680,-458.87313864,0.00022,7]
[393342645,1762493448694,-5287.01415506,0.00022,7]
[393342646,1762493448705,-2268.9727187,0.00022,7]
[393342647,1762493448984,-1.7e-07,0.00022,7]
[393342648,1762493449004,-2562.9,0.00022,7]
[393342649,1762493449015,-842.5093832,0.00022,7]
[393342650,1762493449033,-2793.52261317,0.00022,7]
[393342651,1762493449048,-2352.38799106,0.00022,7]
[393342652,1762493449057,-16566.18,0.000235,7]
[393342653,1762493449066,-9460.43610864,0.000258,7]
[393342654,1762493449204,-7105.74389136,0.000258,7]
[393342655,1762493449213,-16566.18,0.000284,7]
[393342656,1762493449222,-574.0,0.00029676,2]
[393342657,1762493449232,-16566.18,0.00031,7]
[393342658,1762493449242,-574.0,0.00032676,2]
[393342659,1762493449251,-500.0,0.00032876,2]
[393342660,1762493449260,-500.0,0.00032876,2]
[393342661,1762493449269,-500.0,0.00032876,2]
[393342662,1762493449278,-500.0,0.00032876,2]
[393342663,1762493449288,-500.0,0.00032876,2]
[393342664,1762493449297,-414.70124005,0.00032876,2]
[393342665,1762493449306,-16566.18,0.000331,14]
[393342666,1762493449315,-16566.18,0.000345,14]
[393342667,1762493449324,-500.0,0.00034884,120]
[393342668,1762493449333,-688684.82007751,0.0003499,30]
[393342669,1762493449342,-753.475295,0.0003499,31]
[393342670,1762493449351,-753.475295,0.0003499,31]
[393342671,1762493449360,-753.475295,0.0003499,31]
[393342672,1762493449369,-753.475295,0.0003499,31]
[393342673,1762493449379,-161.742778,0.0003499,31]
[393342674,1762493449388,-159.621312,0.0003499,31]
[393342675,1762493449397,-151.0,0.0003499,31]
[393342676,1762493449408,-260.822538,0.0003499,31]
[393342677,1762493449418,-260.822538,0.0003499,31]
[393342678,1762493449427,-260.822538,0.0003499,31]
[393342679,1762493449436,-260.822538,0.0003499,31]
[393342680,1762493449446,-224.81491,0.0003499,31]
[393342681,1762493449455,-151.0,0.0003499,31]
[393342682,1762493449464,-4712.682587,0.0003499,31]
[393342683,1762493449475,-4712.682587,0.0003499,31]
[393342684,1762493449485,-170.037551,0.0003499,31]
[393342685,1762493449494,-4712.682587,0.0003499,31]
[393342686,1762493449503,-4712.682587,0.0003499,31]
[393342687,1762493449512,-151.0,0.0003499,31]
[393342688,1762493449520,-151.0,0.0003499,31]
[393342689,1762493449530,-151.0,0.0003499,31]
[393342690,1762493449539,-151.0,0.0003499,31]
[393342691,1762493449548,-215.927753,0.0003499,30]
[393342692,1762493449557,-215.927753,0.0003499,30]
[393342693,1762493449567,-215.927753,0.0003499,30]
[393342694,1762493449613,-215.927753,0.0003499,30]
[393342695,1762493449622,-151.0,0.0003499,31]
[393342696,1762493449631,-875.43111292,0.0003499,2]
[393342697,1762493449641,-289.137584,0.0003499,31]
[393342698,1762493449650,-325.61957,0.0003499,31]
[393342699,1762493449660,-325.61957,0.0003499,31]
[393342700,1762493449669,-325.61957,0.0003499,31]
[393342701,1762493449678,-325.61957,0.0003499,31]
[393342702,1762493449687,-444.177099,0.0003499,31]
[393342703,1762493449696,-444.177099,0.0003499,31]
[393342704,1762493449705,-151.0,0.0003499,31]
[393342705,1762493449714,-444.177099,0.0003499,31]
[393342706,1762493449723,-151.0,0.0003499,31]
[393342707,1762493449733,-444.177099,0.0003499,31]
[393342708,1762493449743,-255.837939,0.0003499,31]
[393342709,1762493449753,-151.0,0.00035,14]
[393342710,1762493449761,-151.0,0.00035,5]
[393342711,1762493449770,-3162.72758788,0.00035,15]
[393342712,1762493449780,-401.42820235,0.00035,2]
[393342713,1762493449789,-1219.70137002,0.00035,2]
[393342714,1762493449798,-500.0,0.00035041,30]
[393342715,1762493449807,-500.0,0.00035061,2]
[393342716,1762493449816,-181.12211468,0.00035134,14]
[393342717,1762493449825,-875.43111292,0.00035142,2]
[393342718,1762493449834,-501.0,0.00035154,2]
[393342719,1762493449843,-500.0,0.00035177,30]
[393342720,1762493449852,-500.0,0.00035219,30]
[393342721,1762493449860,-157.51553146,0.0003522,2]
[393342722,1762493449870,-166.66,0.00035284,2]
[393342723,1762493449880,-152.0,0.0003529,7]
[393342724,1762493449889,-500.0,0.00035292,30]
[393342725,1762493449899,-218.99390657,0.00035299,2]
[393342726,1762493449908,-1000.0,0.000353,7]
[393342727,1762493449916,-875.43111292,0.00035359,2]
[393342728,1762493449926,-15855.0,0.00035367,3]
[393342729,1762493449935,-880.47213416,0.00035394,30]
[393342730,1762493449944,-5515.0,0.000354,5]
[393342731,1762493449953,-501.0,0.00035429,2]
[393342732,1762493449962,-218.99390657,0.00035435,2]
[393342733,1762493449971,-437.78148577,0.00035471,2]
[393342734,1762493449981,-500.0,0.00035544,30]
[393342735,1762493449989,-501.0,0.00035552,2]
[393342736,1762493449998,-501.0,0.00035572,2]
[393342737,1762493450007,-501.0,0.00035576,7]
[393342738,1762493450016,-151.0,0.000356,2]
[393342739,1762493450025,-3603.10713253,0.00035616,2]
[393342740,1762493450034,-999.0,0.00035616,120]
[393342741,1762493450048,-6000.0,0.00035616,5]
[393342742,1762493450057,-4000.0,0.00035616,5]
[393342743,1762493450067,-500.0,0.00035616,7]
[393342744,1762493450076,-500.0,0.00035616,7]
[393342745,1762493450087,-641.75352453,0.00035616,7]
[393342746,1762493450096,-182.41705828,0.00035616,7]
[393342747,1762493450105,-1000.0,0.00035616,5]